[Event "*** Titled Tuesday Blitz"]
[Site "Chess.com"]
[Date "2020.11.24"]
[Round "1"]
[White "Shankland"]
[Black "crazy_but_lazy"]
[Result "1-0"]
[WhiteElo "2902"]
[BlackElo "2443"]
[TimeControl "180+1"]
[EndTime "10:22:17 PST"]
[Termination "Shankland won by checkmate"]

1. e4 {[%clk 0:03:00.9]} 1... e6 {[%clk 0:02:57]} 2. d4 {[%clk 0:03:00.6]} 2...
d5 {[%clk 0:02:57.6]} 3. Nd2 {[%clk 0:03:01.3]} 3... Be7 {[%clk 0:02:57.1]} 4.
Ngf3 {[%clk 0:03:01]} 4... c5 {[%clk 0:02:55.4]} 5. exd5 {[%clk 0:02:56]} 5...
exd5 {[%clk 0:02:52.6]} 6. Bb5+ {[%clk 0:02:55]} 6... Bd7 {[%clk 0:02:47.2]} 7.
Bxd7+ {[%clk 0:02:55.2]} 7... Nxd7 {[%clk 0:02:46.9]} 8. O-O {[%clk 0:02:55.8]}
8... Ngf6 {[%clk 0:02:46.4]} 9. dxc5 {[%clk 0:02:56]} 9... Nxc5 {[%clk
0:02:46.6]} 10. Re1 {[%clk 0:02:56.3]} 10... O-O {[%clk 0:02:46.6]} 11. Nf1
{[%clk 0:02:56.7]} 11... Re8 {[%clk 0:02:44.5]} 12. Be3 {[%clk 0:02:56.4]} 12...
b6 {[%clk 0:02:40.4]} 13. Bd4 {[%clk 0:02:54.9]} 13... Nce4 {[%clk 0:02:30.6]}
14. Ne3 {[%clk 0:02:54.9]} 14... Bc5 {[%clk 0:02:29.4]} 15. c3 {[%clk
0:02:52.2]} 15... Qd7 {[%clk 0:02:21.8]} 16. Qd3 {[%clk 0:02:49.8]} 16... Rad8
{[%clk 0:02:21.5]} 17. Rad1 {[%clk 0:02:49.2]} 17... h6 {[%clk 0:02:17.5]} 18.
Re2 {[%clk 0:02:44.8]} 18... Qa4 {[%clk 0:02:02.6]} 19. a3 {[%clk 0:02:38.8]}
19... Qc6 {[%clk 0:01:58.5]} 20. Rde1 {[%clk 0:02:37.6]} 20... Re6 {[%clk
0:01:53.4]} 21. Bxf6 {[%clk 0:02:23]} 21... Nxf6 {[%clk 0:01:49.1]} 22. Nd4
{[%clk 0:02:21]} 22... Bxd4 {[%clk 0:01:47.4]} 23. Qxd4 {[%clk 0:02:21.9]} 23...
Re4 {[%clk 0:01:43.3]} 24. Qd3 {[%clk 0:02:21.8]} 24... Rde8 {[%clk 0:01:20]}
25. Nxd5 {[%clk 0:02:06.9]} 25... Rxe2 {[%clk 0:01:10.3]} 26. Nxf6+ {[%clk
0:02:05.5]} 26... Qxf6 {[%clk 0:01:11.2]} 27. Rxe2 {[%clk 0:02:05.5]} 27... Rd8
{[%clk 0:01:03.4]} 28. Qc2 {[%clk 0:02:05.6]} 28... h5 {[%clk 0:01:01.4]} 29. h3
{[%clk 0:02:03.4]} 29... g6 {[%clk 0:01:00.9]} 30. Qe4 {[%clk 0:01:53.8]} 30...
Rd1+ {[%clk 0:00:56.6]} 31. Kh2 {[%clk 0:01:53.6]} 31... Qd6+ {[%clk 0:00:56.3]}
32. g3 {[%clk 0:01:51.5]} 32... Kg7 {[%clk 0:00:54]} 33. h4 {[%clk 0:01:51.3]}
33... Ra1 {[%clk 0:00:45.8]} 34. Kg2 {[%clk 0:01:50.9]} 34... Qd1 {[%clk
0:00:39]} 35. Qd4+ {[%clk 0:01:48.5]} 35... Qxd4 {[%clk 0:00:39]} 36. cxd4
{[%clk 0:01:49.4]} 36... Rd1 {[%clk 0:00:37.6]} 37. Re7 {[%clk 0:01:48.7]} 37...
Rxd4 {[%clk 0:00:32.4]} 38. Rxa7 {[%clk 0:01:48.8]} 38... Rd2 {[%clk 0:00:32.3]}
39. b4 {[%clk 0:01:48.7]} 39... Ra2 {[%clk 0:00:31.3]} 40. b5 {[%clk 0:01:46.7]}
40... Kf6 {[%clk 0:00:28.8]} 41. a4 {[%clk 0:01:45.2]} 41... Ke6 {[%clk
0:00:26.4]} 42. Ra6 {[%clk 0:01:40.5]} 42... Ke5 {[%clk 0:00:25.9]} 43. Rxb6
{[%clk 0:01:36.9]} 43... Rxa4 {[%clk 0:00:25.6]} 44. Rb7 {[%clk 0:01:37.6]}
44... Kf6 {[%clk 0:00:21.9]} 45. b6 {[%clk 0:01:36.8]} 45... Rb4 {[%clk
0:00:21.8]} 46. Kf3 {[%clk 0:01:37.2]} 46... Rb2 {[%clk 0:00:20.4]} 47. Ke3
{[%clk 0:01:36.8]} 47... Ke6 {[%clk 0:00:20.9]} 48. Rb8 {[%clk 0:01:28.4]} 48...
f6 {[%clk 0:00:21.2]} 49. b7 {[%clk 0:01:26.2]} 49... Kf5 {[%clk 0:00:21.6]} 50.
f3 {[%clk 0:01:25.4]} 50... Rb3+ {[%clk 0:00:21.5]} 51. Kd4 {[%clk 0:01:25.3]}
51... Rb1 {[%clk 0:00:16.7]} 52. Kc3 {[%clk 0:01:23.9]} 52... Rb6 {[%clk
0:00:16.4]} 53. Kd2 {[%clk 0:01:22.6]} 53... Rb2+ {[%clk 0:00:16.4]} 54. Kd3
{[%clk 0:01:21.8]} 54... Rb3+ {[%clk 0:00:16.4]} 55. Kd4 {[%clk 0:01:21.5]}
55... Rb1 {[%clk 0:00:16.8]} 56. g4+ {[%clk 0:01:15.8]} 56... hxg4 {[%clk
0:00:16.9]} 57. fxg4+ {[%clk 0:01:16.2]} 57... Kxg4 {[%clk 0:00:16.9]} 58. h5
{[%clk 0:01:16.9]} 58... Kxh5 {[%clk 0:00:08.3]} 59. Rh8+ {[%clk 0:01:16.2]}
59... Kg4 {[%clk 0:00:08.9]} 60. b8=Q {[%clk 0:01:17.1]} 60... Rxb8 {[%clk
0:00:09.3]} 61. Rxb8 {[%clk 0:01:17.8]} 61... f5 {[%clk 0:00:10]} 62. Ke3 {[%clk
0:01:18.2]} 62... g5 {[%clk 0:00:09.8]} 63. Kf2 {[%clk 0:01:18]} 63... f4 {[%clk
0:00:10.2]} 64. Rb3 {[%clk 0:01:17.5]} 64... Kh4 {[%clk 0:00:10.2]} 65. Kf3
{[%clk 0:01:16.9]} 65... Kh5 {[%clk 0:00:10.3]} 66. Rb1 {[%clk 0:01:15.9]} 66...
Kh4 {[%clk 0:00:06.3]} 67. Rh1# {[%clk 0:01:15.1]} 1-0

[Event "*** Titled Tuesday Blitz"]
[Site "Chess.com"]
[Date "2020.11.24"]
[Round "1"]
[White "maciek_92"]
[Black "Caisachess"]
[Result "1-0"]
[WhiteElo "2763"]
[BlackElo "2396"]
[TimeControl "180+1"]
[EndTime "10:22:19 PST"]
[Termination "maciek_92 won on time"]

1. e4 {[%clk 0:03:00.9]} 1... e5 {[%clk 0:02:59.6]} 2. Nf3 {[%clk 0:02:59.6]}
2... Nc6 {[%clk 0:02:59.6]} 3. Bb5 {[%clk 0:02:59.6]} 3... f5 {[%clk 0:02:59.3]}
4. d3 {[%clk 0:02:56.7]} 4... fxe4 {[%clk 0:02:58.4]} 5. dxe4 {[%clk 0:02:57.6]}
5... Nf6 {[%clk 0:02:58.9]} 6. O-O {[%clk 0:02:56.5]} 6... Bc5 {[%clk
0:02:58.8]} 7. Bg5 {[%clk 0:02:55.3]} 7... d6 {[%clk 0:02:58.7]} 8. Nbd2 {[%clk
0:02:55.4]} 8... O-O {[%clk 0:02:58.2]} 9. c3 {[%clk 0:02:50.4]} 9... a6 {[%clk
0:02:55.2]} 10. Bc4+ {[%clk 0:02:50.2]} 10... Kh8 {[%clk 0:02:54.7]} 11. a4
{[%clk 0:02:50.7]} 11... Bg4 {[%clk 0:02:51.7]} 12. Qe1 {[%clk 0:02:45.3]} 12...
Qe8 {[%clk 0:02:47.3]} 13. h3 {[%clk 0:02:44.6]} 13... Bd7 {[%clk 0:02:42.8]}
14. b4 {[%clk 0:02:40.1]} 14... Ba7 {[%clk 0:02:39.9]} 15. Be3 {[%clk
0:02:40.2]} 15... Nh5 {[%clk 0:02:32.1]} 16. Bxa7 {[%clk 0:02:38.2]} 16... Rxa7
{[%clk 0:02:31.4]} 17. Qe3 {[%clk 0:02:20.9]} 17... Nf4 {[%clk 0:02:13.3]} 18.
h4 {[%clk 0:02:16.3]} 18... Ra8 {[%clk 0:02:01.1]} 19. g3 {[%clk 0:02:14.9]}
19... Ng6 {[%clk 0:01:23.6]} 20. Kh2 {[%clk 0:02:01.1]} 20... Bg4 {[%clk
0:01:20.1]} 21. Ng1 {[%clk 0:01:55.6]} 21... Be6 {[%clk 0:01:13.4]} 22. Be2
{[%clk 0:01:50]} 22... Nge7 {[%clk 0:01:04.3]} 23. f4 {[%clk 0:01:39.4]} 23...
Ng8 {[%clk 0:00:50.1]} 24. f5 {[%clk 0:01:32.9]} 24... Bf7 {[%clk 0:00:46.4]}
25. g4 {[%clk 0:01:33.1]} 25... d5 {[%clk 0:00:46.8]} 26. b5 {[%clk 0:01:30.8]}
26... d4 {[%clk 0:00:42.5]} 27. Qg3 {[%clk 0:01:30]} 27... dxc3 {[%clk
0:00:41.6]} 28. bxc6 {[%clk 0:01:27.2]} 28... cxd2 {[%clk 0:00:41.5]} 29. cxb7
{[%clk 0:01:27.8]} 29... Rb8 {[%clk 0:00:41.8]} 30. Bxa6 {[%clk 0:01:25.1]}
30... Qc6 {[%clk 0:00:37]} 31. Qd3 {[%clk 0:01:15.4]} 31... Rfd8 {[%clk
0:00:34.5]} 32. Qe2 {[%clk 0:01:00.2]} 32... Rd4 {[%clk 0:00:28.7]} 33. Bb5
{[%clk 0:00:46.1]} 33... Qh6 {[%clk 0:00:21.5]} 34. Nf3 {[%clk 0:00:35.4]} 34...
Qf4+ {[%clk 0:00:19.8]} 35. Kh1 {[%clk 0:00:35.8]} 35... Rxe4 {[%clk 0:00:16.5]}
36. Ng5 {[%clk 0:00:22.7]} 36... Bd5 {[%clk 0:00:10.2]} 37. Qg2 {[%clk 0:00:23]}
1-0

[Event "*** Titled Tuesday Blitz"]
[Site "Chess.com"]
[Date "2020.11.24"]
[Round "1"]
[White "tvjosue"]
[Black "Lady_Nika"]
[Result "1-0"]
[WhiteElo "2659"]
[BlackElo "2340"]
[TimeControl "180+1"]
[EndTime "10:22:20 PST"]
[Termination "tvjosue won by checkmate"]

1. b3 {[%clk 0:03:00.6]} 1... d5 {[%clk 0:02:26.4]} 2. Bb2 {[%clk 0:03:01.5]}
2... e6 {[%clk 0:02:25.4]} 3. e3 {[%clk 0:03:00.6]} 3... f5 {[%clk 0:02:20.4]}
4. f4 {[%clk 0:03:00.3]} 4... Nf6 {[%clk 0:02:18.5]} 5. Nf3 {[%clk 0:02:59.7]}
5... Bd6 {[%clk 0:02:18.7]} 6. Be2 {[%clk 0:02:59.7]} 6... O-O {[%clk
0:02:18.9]} 7. O-O {[%clk 0:02:59.1]} 7... c6 {[%clk 0:02:19.2]} 8. d3 {[%clk
0:02:58.7]} 8... Nbd7 {[%clk 0:02:19.6]} 9. c4 {[%clk 0:02:58.5]} 9... b6 {[%clk
0:02:19.8]} 10. Nd4 {[%clk 0:02:56.6]} 10... Bb7 {[%clk 0:02:09.9]} 11. Nxe6
{[%clk 0:02:51.3]} 11... Qe7 {[%clk 0:02:09.5]} 12. Nxf8 {[%clk 0:02:51.7]}
12... Qxe3+ {[%clk 0:02:09.1]} 13. Kh1 {[%clk 0:02:52.2]} 13... Rxf8 {[%clk
0:02:05.7]} 14. Nc3 {[%clk 0:02:47.5]} 14... d4 {[%clk 0:02:03.3]} 15. Bc1
{[%clk 0:02:39.5]} 15... Qe7 {[%clk 0:02:01.6]} 16. Nb1 {[%clk 0:02:38.7]} 16...
c5 {[%clk 0:01:59.7]} 17. Bf3 {[%clk 0:02:38.9]} 17... Bxf3 {[%clk 0:01:58.6]}
18. Qxf3 {[%clk 0:02:39.8]} 18... Ng4 {[%clk 0:01:57.7]} 19. Bd2 {[%clk
0:02:37.9]} 19... Qh4 {[%clk 0:01:55]} 20. h3 {[%clk 0:02:38.2]} 20... Re8
{[%clk 0:01:49.4]} 21. Na3 {[%clk 0:02:38.4]} 21... Ne3 {[%clk 0:01:48.3]} 22.
Rae1 {[%clk 0:02:37.2]} 22... Nxf1 {[%clk 0:01:41.4]} 23. Rxe8+ {[%clk
0:02:35.8]} 23... Kf7 {[%clk 0:01:41.3]} 24. Be1 {[%clk 0:02:15]} 24... Qxf4
{[%clk 0:01:37.4]} 25. Qxf4 {[%clk 0:02:10.8]} 25... Bxf4 {[%clk 0:01:37.1]} 26.
Ra8 {[%clk 0:02:06.4]} 26... a5 {[%clk 0:01:34.2]} 27. Nb5 {[%clk 0:02:01.1]}
27... Kg6 {[%clk 0:01:29.9]} 28. Ra7 {[%clk 0:01:59.7]} 28... Ne5 {[%clk
0:01:29.1]} 29. Rb7 {[%clk 0:01:57.9]} 29... Nxd3 {[%clk 0:01:29]} 30. Rxb6+
{[%clk 0:01:58.4]} 30... Kh5 {[%clk 0:01:28.8]} 31. Bxa5 {[%clk 0:01:48.3]}
31... Bh2 {[%clk 0:01:28.6]} 32. g4+ {[%clk 0:01:43.7]} 32... fxg4 {[%clk
0:01:28.2]} 33. hxg4+ {[%clk 0:01:44.6]} 33... Kxg4 {[%clk 0:01:28.5]} 34. Kg2
{[%clk 0:01:45.5]} 34... Ne3+ {[%clk 0:01:12.5]} 35. Kxh2 {[%clk 0:01:43.5]}
35... Kf3 {[%clk 0:01:12]} 36. Rb7 {[%clk 0:01:41.7]} 36... g5 {[%clk
0:01:10.5]} 37. Rf7+ {[%clk 0:01:37.1]} 37... Nf4 {[%clk 0:01:09.5]} 38. Bc7
{[%clk 0:01:27.9]} 38... d3 {[%clk 0:01:06.8]} 39. Bxf4 {[%clk 0:01:20.9]} 39...
gxf4 {[%clk 0:01:06.3]} 40. Rd7 {[%clk 0:01:21.3]} 40... d2 {[%clk 0:01:01.2]}
41. Nc3 {[%clk 0:01:19]} 41... Kf2 {[%clk 0:00:56.6]} 42. Ne4+ {[%clk
0:01:17.6]} 42... Ke1 {[%clk 0:00:50.9]} 43. Nxd2 {[%clk 0:01:17.2]} 43... Ng4+
{[%clk 0:00:39.1]} 44. Kg2 {[%clk 0:01:14.9]} 44... Ne5 {[%clk 0:00:37.8]} 45.
Rd5 {[%clk 0:01:12.5]} 45... Ng4 {[%clk 0:00:33]} 46. Nf1 {[%clk 0:01:07.4]}
46... Ne3+ {[%clk 0:00:30.5]} 47. Nxe3 {[%clk 0:01:07]} 47... fxe3 {[%clk
0:00:30.8]} 48. Rxc5 {[%clk 0:01:07.9]} 48... Kd2 {[%clk 0:00:28.5]} 49. Re5
{[%clk 0:01:08.8]} 49... Kc3 {[%clk 0:00:27.2]} 50. Rxe3+ {[%clk 0:01:08.4]}
50... Kb2 {[%clk 0:00:27.8]} 51. c5 {[%clk 0:01:07.5]} 51... Kxa2 {[%clk
0:00:27.7]} 52. c6 {[%clk 0:01:08.3]} 52... h5 {[%clk 0:00:28.1]} 53. c7 {[%clk
0:01:09.2]} 53... h4 {[%clk 0:00:28.7]} 54. c8=Q {[%clk 0:01:10.1]} 54... h3+
{[%clk 0:00:29.4]} 55. Kxh3 {[%clk 0:01:09.5]} 55... Ka3 {[%clk 0:00:28.8]} 56.
Qa6+ {[%clk 0:01:09.4]} 56... Kb2 {[%clk 0:00:28.6]} 57. Qe2+ {[%clk 0:01:08.7]}
57... Ka3 {[%clk 0:00:28.1]} 58. b4+ {[%clk 0:01:08.6]} 58... Ka4 {[%clk
0:00:28.3]} 59. Qa6+ {[%clk 0:01:07.9]} 59... Kxb4 {[%clk 0:00:28.4]} 60. Qa3+
{[%clk 0:01:08.3]} 60... Kb5 {[%clk 0:00:28.2]} 61. Rc3 {[%clk 0:01:04.8]} 61...
Kb6 {[%clk 0:00:27.9]} 62. Rc5 {[%clk 0:01:05.4]} 62... Kb7 {[%clk 0:00:27.8]}
63. Qa5 {[%clk 0:01:06.3]} 63... Kb8 {[%clk 0:00:28]} 64. Rc3 {[%clk 0:01:03.6]}
64... Kb7 {[%clk 0:00:27.8]} 65. Rc7+ {[%clk 0:01:04.5]} 65... Kb8 {[%clk
0:00:28.7]} 66. Qa7# {[%clk 0:01:05.4]} 1-0

[Event "*** Titled Tuesday Blitz"]
[Site "Chess.com"]
[Date "2020.11.24"]
[Round "1"]
[White "svilson23"]
[Black "CheckThis4"]
[Result "0-1"]
[WhiteElo "2264"]
[BlackElo "2560"]
[TimeControl "180+1"]
[EndTime "10:22:20 PST"]
[Termination "CheckThis4 won on time"]

1. d4 {[%clk 0:02:57.5]} 1... Nf6 {[%clk 0:03:00]} 2. Bg5 {[%clk 0:02:54]} 2...
d5 {[%clk 0:02:56.6]} 3. Bxf6 {[%clk 0:02:53]} 3... exf6 {[%clk 0:02:56.2]} 4.
e3 {[%clk 0:02:53.9]} 4... c6 {[%clk 0:02:56.4]} 5. g3 {[%clk 0:02:53.4]} 5...
Bd6 {[%clk 0:02:56.1]} 6. Bg2 {[%clk 0:02:53.3]} 6... Nd7 {[%clk 0:02:52.8]} 7.
Ne2 {[%clk 0:02:53.5]} 7... f5 {[%clk 0:02:52.9]} 8. Nd2 {[%clk 0:02:50.8]} 8...
Nf6 {[%clk 0:02:52.7]} 9. c4 {[%clk 0:02:46.5]} 9... dxc4 {[%clk 0:02:52.7]} 10.
Nxc4 {[%clk 0:02:46.5]} 10... Bc7 {[%clk 0:02:53.3]} 11. O-O {[%clk 0:02:43.1]}
11... h5 {[%clk 0:02:49.1]} 12. h4 {[%clk 0:02:42.1]} 12... Be6 {[%clk
0:02:36.2]} 13. Rc1 {[%clk 0:02:41.1]} 13... Ng4 {[%clk 0:02:32.6]} 14. Nf4
{[%clk 0:02:28.6]} 14... g5 {[%clk 0:02:16.2]} 15. Nxe6 {[%clk 0:02:21.3]} 15...
fxe6 {[%clk 0:02:17.1]} 16. Qb3 {[%clk 0:01:51.1]} 16... gxh4 {[%clk 0:02:00.8]}
17. Ne5 {[%clk 0:01:51]} 17... Bxe5 {[%clk 0:01:49.7]} 18. dxe5 {[%clk 0:01:45]}
18... Qe7 {[%clk 0:01:43.7]} 19. Rfd1 {[%clk 0:01:00.3]} 19... O-O {[%clk
0:01:28.6]} 20. Rd6 {[%clk 0:00:56.4]} 20... Rae8 {[%clk 0:01:28.1]} 21. Rcd1
{[%clk 0:00:47.5]} 21... Nxe5 {[%clk 0:01:22.2]} 22. f4 {[%clk 0:00:46.2]} 22...
Ng4 {[%clk 0:01:06.1]} 23. Rd7 {[%clk 0:00:46.2]} 23... Qf6 {[%clk 0:01:05.5]}
24. Qxb7 {[%clk 0:00:45.2]} 24... hxg3 {[%clk 0:01:01]} 25. Rh7 {[%clk
0:00:31.3]} 25... Rb8 {[%clk 0:00:32.8]} 26. Qxa7 {[%clk 0:00:29.1]} 26... Rbd8
{[%clk 0:00:21.9]} 27. Rdd7 {[%clk 0:00:18.3]} 27... Rxd7 {[%clk 0:00:21.4]} 28.
Qxd7 {[%clk 0:00:19.2]} 28... Nxe3 {[%clk 0:00:19.2]} 29. Bxc6 {[%clk 0:00:16]}
29... Ng4 {[%clk 0:00:13.2]} 30. Rxh5 {[%clk 0:00:14.1]} 30... Nh6 {[%clk
0:00:12.8]} 31. Rg5+ {[%clk 0:00:10.9]} 31... Kh8 {[%clk 0:00:13]} 32. Rxg3
{[%clk 0:00:08.3]} 32... Rd8 {[%clk 0:00:13.2]} 33. Qa7 {[%clk 0:00:03.3]} 33...
Rd1+ {[%clk 0:00:09.5]} 34. Kh2 {[%clk 0:00:03]} 34... Rd2+ {[%clk 0:00:09.5]}
0-1

[Event "*** Titled Tuesday Blitz"]
[Site "Chess.com"]
[Date "2020.11.24"]
[Round "1"]
[White "santosalberto1987"]
[Black "Quiet_Desperation"]
[Result "0-1"]
[WhiteElo "2452"]
[BlackElo "1658"]
[TimeControl "180+1"]
[EndTime "10:22:21 PST"]
[Termination "Quiet_Desperation won by checkmate"]

1. e4 {[%clk 0:02:59.9]} 1... e6 {[%clk 0:02:59.1]} 2. d4 {[%clk 0:03:00]} 2...
d5 {[%clk 0:02:59.1]} 3. Nc3 {[%clk 0:02:59.6]} 3... Nf6 {[%clk 0:02:59.1]} 4.
e5 {[%clk 0:03:00]} 4... Nfd7 {[%clk 0:02:59]} 5. Nce2 {[%clk 0:03:00.6]} 5...
c5 {[%clk 0:02:56.7]} 6. c3 {[%clk 0:03:01]} 6... Nc6 {[%clk 0:02:55.8]} 7. Nf3
{[%clk 0:03:01]} 7... Qb6 {[%clk 0:02:45.7]} 8. a3 {[%clk 0:03:00.7]} 8... c4
{[%clk 0:02:38.7]} 9. h4 {[%clk 0:02:58]} 9... Na5 {[%clk 0:02:37.2]} 10. Nf4
{[%clk 0:02:54.7]} 10... Qb3 {[%clk 0:02:16.4]} 11. Be2 {[%clk 0:02:52.1]} 11...
Qxd1+ {[%clk 0:02:16.1]} 12. Bxd1 {[%clk 0:02:52.8]} 12... Be7 {[%clk 0:02:16]}
13. Bc2 {[%clk 0:02:49.9]} 13... h6 {[%clk 0:02:12.4]} 14. Rh3 {[%clk
0:02:47.9]} 14... b5 {[%clk 0:02:08.1]} 15. Rg3 {[%clk 0:02:46.1]} 15... Kf8
{[%clk 0:02:08.2]} 16. Nh5 {[%clk 0:02:43.8]} 16... g6 {[%clk 0:02:05]} 17. Nf4
{[%clk 0:02:38.9]} 17... Rg8 {[%clk 0:01:35.1]} 18. Be3 {[%clk 0:02:06.8]} 18...
Nb6 {[%clk 0:01:31.8]} 19. Ne2 {[%clk 0:01:59.5]} 19... Kg7 {[%clk 0:01:14.4]}
20. Nh2 {[%clk 0:01:58.2]} 20... h5 {[%clk 0:01:08.5]} 21. Nf3 {[%clk
0:01:57.6]} 21... Nb3 {[%clk 0:01:06.4]} 22. Rb1 {[%clk 0:01:53.8]} 22... a5
{[%clk 0:01:04.6]} 23. Bg5 {[%clk 0:01:50.4]} 23... Bxg5 {[%clk 0:00:57.8]} 24.
Nxg5 {[%clk 0:01:50.2]} 24... b4 {[%clk 0:00:55.3]} 25. Nf4 {[%clk 0:01:39.6]}
25... bxc3 {[%clk 0:00:50.8]} 26. bxc3 {[%clk 0:01:39.3]} 26... Bd7 {[%clk
0:00:40]} 27. Rf3 {[%clk 0:01:09.9]} 27... Rgf8 {[%clk 0:00:35.1]} 28. Bxb3
{[%clk 0:00:47.4]} 28... cxb3 {[%clk 0:00:34.7]} 29. Rxb3 {[%clk 0:00:48.3]}
29... Rab8 {[%clk 0:00:35.2]} 30. Nd3 {[%clk 0:00:38.6]} 30... Ba4 {[%clk
0:00:28.3]} 31. Rb2 {[%clk 0:00:34.2]} 31... Nc4 {[%clk 0:00:26.2]} 32. Rxb8
{[%clk 0:00:33.7]} 32... Rxb8 {[%clk 0:00:26.3]} 33. Rxf7+ {[%clk 0:00:33.8]}
33... Kg8 {[%clk 0:00:26.7]} 34. Nf4 {[%clk 0:00:29.5]} 34... Rb1+ {[%clk
0:00:26]} 35. Ke2 {[%clk 0:00:29.4]} 35... Bd1+ {[%clk 0:00:16.4]} 36. Kd3
{[%clk 0:00:29.3]} 36... Rb2 {[%clk 0:00:15.6]} 37. Nxd5 {[%clk 0:00:07.1]}
37... exd5 {[%clk 0:00:13.4]} 38. Rd7 {[%clk 0:00:04.6]} 38... Rd2# {[%clk
0:00:11.2]} 0-1

[Event "*** Titled Tuesday Blitz"]
[Site "Chess.com"]
[Date "2020.11.24"]
[Round "1"]
[White "Sinquefield"]
[Black "Love_craft"]
[Result "1-0"]
[WhiteElo "2352"]
[BlackElo "2589"]
[TimeControl "180+1"]
[EndTime "10:22:22 PST"]
[Termination "Sinquefield won by checkmate"]

1. e4 {[%clk 0:02:59.3]} 1... g6 {[%clk 0:02:58.9]} 2. d4 {[%clk 0:02:55.8]}
2... Bg7 {[%clk 0:02:58.7]} 3. Nc3 {[%clk 0:02:56.3]} 3... d6 {[%clk 0:02:58.9]}
4. Be3 {[%clk 0:02:55.3]} 4... a6 {[%clk 0:02:58.3]} 5. Qd2 {[%clk 0:02:37.8]}
5... b5 {[%clk 0:02:56]} 6. O-O-O {[%clk 0:02:37.9]} 6... Bb7 {[%clk 0:02:55.6]}
7. f3 {[%clk 0:02:37.8]} 7... Nd7 {[%clk 0:02:52.9]} 8. h4 {[%clk 0:02:36.9]}
8... h5 {[%clk 0:02:52.5]} 9. Nh3 {[%clk 0:02:36.4]} 9... Rc8 {[%clk 0:02:52.3]}
10. Ng5 {[%clk 0:02:36.7]} 10... c5 {[%clk 0:02:52.1]} 11. g4 {[%clk 0:02:24]}
11... hxg4 {[%clk 0:02:34.5]} 12. fxg4 {[%clk 0:02:22.7]} 12... Ngf6 {[%clk
0:02:34.6]} 13. Bg2 {[%clk 0:02:19.8]} 13... Nxg4 {[%clk 0:02:28.7]} 14. Bg1
{[%clk 0:02:19.8]} 14... cxd4 {[%clk 0:02:11.4]} 15. Bxd4 {[%clk 0:02:19]} 15...
Nge5 {[%clk 0:02:10.5]} 16. Rdf1 {[%clk 0:02:15.4]} 16... Nf6 {[%clk 0:02:08.6]}
17. Nd5 {[%clk 0:02:13.2]} 17... Bxd5 {[%clk 0:02:06.3]} 18. exd5 {[%clk
0:02:13.7]} 18... Rc4 {[%clk 0:01:55.9]} 19. Kb1 {[%clk 0:01:48.5]} 19... Qc7
{[%clk 0:01:30.6]} 20. Bxe5 {[%clk 0:01:14.5]} 20... dxe5 {[%clk 0:01:28.9]} 21.
d6 {[%clk 0:01:14.8]} 21... Qxd6 {[%clk 0:01:25.1]} 22. Qa5 {[%clk 0:01:15.1]}
22... O-O {[%clk 0:01:16.5]} 23. Rd1 {[%clk 0:01:12.4]} 23... Qb4 {[%clk
0:01:07.6]} 24. Qxa6 {[%clk 0:00:28.4]} 24... e4 {[%clk 0:01:06.5]} 25. a3
{[%clk 0:00:24.6]} 25... Qc5 {[%clk 0:01:05]} 26. c3 {[%clk 0:00:23.9]} 26...
Ng4 {[%clk 0:00:40.7]} 27. Rhe1 {[%clk 0:00:21.4]} 27... Nf2 {[%clk 0:00:24.5]}
28. Nxe4 {[%clk 0:00:20.9]} 28... Nxe4 {[%clk 0:00:22.7]} 29. Bxe4 {[%clk
0:00:21.4]} 29... Rxc3 {[%clk 0:00:21]} 30. bxc3 {[%clk 0:00:19.2]} 30... Qxc3
{[%clk 0:00:21.9]} 31. Qxb5 {[%clk 0:00:19.7]} 31... Rc8 {[%clk 0:00:17.7]} 32.
Ka2 {[%clk 0:00:19.9]} 32... Rc5 {[%clk 0:00:13.6]} 33. Qb3 {[%clk 0:00:17.2]}
33... Qf6 {[%clk 0:00:12.2]} 34. Rf1 {[%clk 0:00:14.6]} 34... Qe5 {[%clk
0:00:03.5]} 35. Qxf7+ {[%clk 0:00:14.6]} 35... Kh8 {[%clk 0:00:03.6]} 36. Qe8+
{[%clk 0:00:14.6]} 36... Kh7 {[%clk 0:00:04]} 37. Qxg6+ {[%clk 0:00:14.2]} 37...
Kh8 {[%clk 0:00:02.2]} 38. Qh7# {[%clk 0:00:15.1]} 1-0

[Event "*** Titled Tuesday Blitz"]
[Site "Chess.com"]
[Date "2020.11.24"]
[Round "1"]
[White "ChessWarrior7197"]
[Black "geordie_derraugh"]
[Result "1-0"]
[WhiteElo "3002"]
[BlackElo "2463"]
[TimeControl "180+1"]
[EndTime "10:22:23 PST"]
[Termination "ChessWarrior7197 won by resignation"]

1. c4 {[%clk 0:03:00.9]} 1... e5 {[%clk 0:02:59.5]} 2. Nc3 {[%clk 0:03:00.4]}
2... Nc6 {[%clk 0:02:59.7]} 3. Nf3 {[%clk 0:03:00.3]} 3... f5 {[%clk 0:02:58.7]}
4. d4 {[%clk 0:02:54.3]} 4... e4 {[%clk 0:02:56.9]} 5. d5 {[%clk 0:02:54.6]}
5... exf3 {[%clk 0:02:55.4]} 6. dxc6 {[%clk 0:02:54.7]} 6... bxc6 {[%clk
0:02:51.9]} 7. exf3 {[%clk 0:02:52.6]} 7... Bc5 {[%clk 0:02:42.1]} 8. Bd3 {[%clk
0:02:48.1]} 8... Qe7+ {[%clk 0:02:20.6]} 9. Kf1 {[%clk 0:02:42.3]} 9... d6
{[%clk 0:02:19.6]} 10. g3 {[%clk 0:02:40.7]} 10... Nf6 {[%clk 0:02:14]} 11. Kg2
{[%clk 0:02:40.3]} 11... O-O {[%clk 0:02:13.6]} 12. Na4 {[%clk 0:02:40]} 12...
Bb6 {[%clk 0:01:45.9]} 13. b3 {[%clk 0:02:30.9]} 13... Bd4 {[%clk 0:01:37.4]}
14. Rb1 {[%clk 0:02:02.9]} 14... c5 {[%clk 0:01:36.8]} 15. Re1 {[%clk 0:01:59]}
15... Qf7 {[%clk 0:01:36.3]} 16. Be3 {[%clk 0:01:58.7]} 16... Bb7 {[%clk
0:00:48.1]} 17. Kg1 {[%clk 0:01:52.9]} 17... Bxe3 {[%clk 0:00:45.6]} 18. fxe3
{[%clk 0:01:47.1]} 18... Qh5 {[%clk 0:00:45.2]} 19. Be2 {[%clk 0:01:21.6]} 19...
Rae8 {[%clk 0:00:41.9]} 20. f4 {[%clk 0:01:02]} 20... Ng4 {[%clk 0:00:35.3]} 21.
Bxg4 {[%clk 0:00:57.7]} 21... fxg4 {[%clk 0:00:35.7]} 22. Nc3 {[%clk 0:00:56.2]}
22... Rf6 {[%clk 0:00:29.3]} 23. e4 {[%clk 0:00:55.8]} 23... Qh3 {[%clk
0:00:26.1]} 24. Rb2 {[%clk 0:00:55]} 24... Rxf4 {[%clk 0:00:16.4]} 25. gxf4
{[%clk 0:00:50.6]} 25... Qxc3 {[%clk 0:00:17]} 26. Rbe2 {[%clk 0:00:48.2]} 26...
g3 {[%clk 0:00:15.6]} 27. Re3 {[%clk 0:00:40.9]} 27... gxh2+ {[%clk 0:00:13.9]}
28. Kxh2 {[%clk 0:00:41.8]} 28... Qf6 {[%clk 0:00:13.8]} 29. Qg4 {[%clk
0:00:42]} 29... Qh6+ {[%clk 0:00:10.5]} 30. Kg1 {[%clk 0:00:37.4]} 30... Re6
{[%clk 0:00:10.6]} 31. Rg3 {[%clk 0:00:37.2]} 31... Rxe4 {[%clk 0:00:06.9]} 32.
Rxe4 {[%clk 0:00:31.7]} 32... Bxe4 {[%clk 0:00:07.8]} 33. Qc8+ {[%clk 0:00:32]}
33... Kf7 {[%clk 0:00:08.4]} 34. Qxc7+ {[%clk 0:00:32.4]} 34... Kf8 {[%clk
0:00:07.4]} 35. Qd8+ {[%clk 0:00:23.3]} 35... Kf7 {[%clk 0:00:07.5]} 36. Qd7+
{[%clk 0:00:23.5]} 36... Kf8 {[%clk 0:00:07.8]} 37. Qh3 {[%clk 0:00:16.8]} 37...
Qxf4 {[%clk 0:00:07.6]} 38. Qc8+ {[%clk 0:00:16.9]} 38... Ke7 {[%clk 0:00:04.5]}
39. Rxg7+ {[%clk 0:00:16.7]} 39... Kf6 {[%clk 0:00:03.9]} 40. Qf8+ {[%clk
0:00:17.2]} 40... Ke5 {[%clk 0:00:04.2]} 41. Re7+ {[%clk 0:00:17.5]} 1-0